fUSD/lending_fUSD_20250811
["ID","MTS","AMOUNT","RATE_DAILY","PERIOD"]
[378622406,1754928652342,-400.0,0.00016712,2]
[378622407,1754928652351,-559.49,0.00016712,2]
[378622408,1754928652361,-400.0,0.00016712,2]
[378622409,1754928652370,-400.0,0.00016712,2]
[378622410,1754928652381,-400.0,0.00016712,2]
[378622411,1754928652390,-666.35,0.00016712,2]
[378622412,1754928652399,-764.43,0.00016712,2]
[378622413,1754928652409,-400.0,0.00016712,2]
[378622414,1754928652418,-400.0,0.00016712,2]
[378622415,1754928652429,-589.75,0.00016712,2]
[378622416,1754928652438,-443.55,0.00016712,2]
[378622417,1754928652447,-269.31143724,0.00016712,2]
[378622418,1754928652457,-400.0,0.00016712,2]
[378622419,1754928652467,-400.0,0.00016712,2]
[378622420,1754928652477,-493.43,0.00016712,2]
[378622421,1754928652486,-546.93,0.00016712,2]
[378622422,1754928652496,-400.0,0.00016712,2]
[378622423,1754928652506,-788.2,0.00016712,2]
[378622424,1754928652515,-400.0,0.00016712,2]
[378622425,1754928652525,-400.0,0.00016712,2]
[378622426,1754928652534,-400.0,0.00016712,2]
[378622427,1754928652544,-608.47,0.00016712,2]
[378622428,1754928652554,-400.0,0.00016712,2]
[378622429,1754928652564,-1682.66,0.00016712,2]
[378622430,1754928652574,-400.0,0.00016712,2]
[378622431,1754928652584,-588.23,0.00016712,2]
[378622432,1754928652593,-400.0,0.00016712,2]
[378622433,1754928652603,-400.0,0.00016712,2]
[378622434,1754928652612,-151.0,0.00016712,2]
[378622435,1754928652622,-490.79,0.00016712,2]
[378622436,1754928652632,-589.35,0.00016712,2]
[378622437,1754928652641,-716.73,0.00016712,2]
[378622438,1754928652650,-584.42,0.00016712,2]
[378622439,1754928652660,-400.0,0.00016712,2]
[378622440,1754928652669,-627.74,0.00016712,2]
[378622441,1754928652680,-400.0,0.00016712,2]
[378622442,1754928652690,-400.0,0.00016712,2]
[378622443,1754928652699,-400.0,0.00016712,2]
[378622444,1754928652709,-400.0,0.00016712,2]
[378622445,1754928652718,-400.0,0.00016712,2]
[378622446,1754928652728,-400.0,0.00016712,2]
[378622447,1754928652737,-403.24138685,0.00016712,2]
[378622448,1754928652747,-400.0,0.00016712,2]
[378622449,1754928652756,-400.0,0.00016712,2]
[378622450,1754928652766,-479.91,0.00016712,2]
[378622451,1754928652775,-508.26,0.00016712,2]
[378622452,1754928652785,-595.42,0.00016712,2]
[378622453,1754928652795,-400.0,0.00016712,2]
[378622454,1754928652804,-400.0,0.00016712,2]
[378622455,1754928652814,-400.0,0.00016712,2]
[378622456,1754928652824,-400.0,0.00016712,2]
[378622457,1754928652833,-438.1,0.00016712,2]
[378622458,1754928652843,-2067.86,0.00016712,2]
[378622459,1754928652853,-400.0,0.00016712,2]
[378622460,1754928652863,-400.0,0.00016712,2]
[378622461,1754928652872,-688.73,0.00016712,2]
[378622462,1754928652881,-400.0,0.00016712,2]
[378622463,1754928652891,-642.099351,0.00016712,2]
[378622464,1754928652901,-642.099351,0.00016712,2]
[378622465,1754928652911,-642.099351,0.00016712,2]
[378622466,1754928652921,-400.0,0.00016712,2]
[378622467,1754928652931,-400.0,0.00016712,2]
[378622468,1754928652940,-400.0,0.00016712,2]
[378622469,1754928652950,-459.81,0.00016712,2]
[378622470,1754928652959,-400.0,0.00016712,2]
[378622471,1754928652969,-779.32,0.00016712,2]
[378622472,1754928652978,-400.0,0.00016712,2]
[378622473,1754928652988,-642.099351,0.00016712,2]
[378622474,1754928652998,-642.099351,0.00016712,2]
[378622475,1754928653007,-642.099351,0.00016712,2]
[378622476,1754928653017,-449.23,0.00016712,2]
[378622477,1754928653027,-2643.53,0.00016712,2]
[378622478,1754928653037,-417.52,0.00016712,2]
[378622479,1754928653046,-1216.89,0.00016712,2]
[378622480,1754928653056,-151.0,0.00016712,2]
[378622481,1754928653066,-400.0,0.00016712,2]
[378622482,1754928653076,-400.0,0.00016712,2]
[378622483,1754928653091,-303.49512847,0.00016712,2]
[378622484,1754928653101,-470.53,0.00016712,2]
[378622485,1754928653110,-400.0,0.00016712,2]
[378622486,1754928653119,-501.25,0.00016712,2]
[378622487,1754928653130,-400.0,0.00016712,2]
[378622488,1754928653139,-864.54,0.00016712,2]
[378622489,1754928653148,-948.38,0.00016712,2]
[378622490,1754928653157,-600.25,0.00016712,2]
[378622491,1754928653166,-400.0,0.00016712,2]
[378622492,1754928653177,-400.0,0.00016712,2]
[378622493,1754928653186,-151.0,0.00016712,2]
[378622494,1754928653196,-229.481284,0.00016712,2]
[378622495,1754928653205,-400.0,0.00016712,2]
[378622496,1754928653214,-400.0,0.00016712,2]
[378622497,1754928653223,-502.56261975,0.00016712,2]
[378622498,1754928653232,-400.0,0.00016712,2]
[378622499,1754928653241,-467.28,0.00016712,2]
[378622500,1754928653251,-493.8,0.00016712,2]
[378622501,1754928653260,-558.05,0.00016712,2]
[378622502,1754928653269,-708.29,0.00016712,2]
[378622503,1754928653278,-1150.78,0.00016712,2]
[378622504,1754928653288,-456.31,0.00016712,2]
[378622505,1754928653297,-400.0,0.00016712,2]
[378622506,1754928653306,-498.69,0.00016712,2]
[378622507,1754928653315,-151.0,0.00016712,2]
[378622508,1754928653324,-400.0,0.00016712,2]
[378622509,1754928653333,-400.0,0.00016712,2]
[378622510,1754928653343,-400.0,0.00016712,2]
[378622511,1754928653352,-2481.92,0.00016712,2]
[378622512,1754928653361,-674.52,0.00016712,2]
[378622513,1754928653370,-531.6,0.00016712,2]
[378622514,1754928653379,-931.61,0.00016712,2]
[378622515,1754928653389,-402.62,0.00016712,2]
[378622516,1754928653398,-400.0,0.00016712,2]
[378622517,1754928653407,-400.0,0.00016712,2]
[378622518,1754928653417,-400.0,0.00016712,2]
[378622519,1754928653428,-400.0,0.00016712,2]
[378622520,1754928653438,-422.59,0.00016712,2]
[378622521,1754928653447,-400.0,0.00016712,2]
[378622522,1754928653456,-492.2,0.00016712,2]
[378622523,1754928653466,-1897.1,0.00016712,2]
[378622524,1754928653475,-400.0,0.00016712,2]
[378622525,1754928653485,-711.76,0.00016712,2]
[378622526,1754928653494,-682.68,0.00016712,2]
[378622527,1754928653505,-824.45,0.00016712,2]
[378622528,1754928653515,-697.3,0.00016712,2]
[378622529,1754928653524,-400.0,0.00016712,2]
[378622530,1754928653534,-485.45,0.00016712,2]
[378622531,1754928653543,-953.06,0.00016712,2]
[378622532,1754928653553,-400.0,0.00016712,2]
[378622533,1754928653563,-596.5,0.00016712,2]
[378622534,1754928653573,-861.68,0.00016712,2]
[378622535,1754928653583,-400.0,0.00016712,2]
[378622536,1754928653593,-658.62,0.00016712,2]
[378622537,1754928653752,-400.0,0.00016712,2]
[378622538,1754928653763,-400.0,0.00016712,2]
[378622539,1754928653773,-1321.09,0.00016712,2]
[378622540,1754928653783,-1323.42,0.00016712,2]
[378622541,1754928653793,-1589.64,0.00016712,2]
[378622542,1754928653802,-422.63,0.00016712,2]
[378622543,1754928653811,-546.7,0.00016712,2]
[378622544,1754928653821,-400.0,0.00016712,2]
[378622545,1754928653830,-1990.72,0.00016712,2]
[378622546,1754928653839,-1738.13,0.00016712,2]
[378622547,1754928653848,-400.0,0.00016712,2]
[378622548,1754928653857,-400.0,0.00016712,2]
[378622549,1754928653867,-151.0,0.00016712,2]
[378622550,1754928653876,-151.0,0.00016712,2]
[378622551,1754928653886,-400.0,0.00016712,2]
[378622552,1754928653895,-293.868725,0.00016712,2]
[378622553,1754928653904,-812.18,0.00016712,2]
[378622554,1754928653913,-400.0,0.00016712,2]
[378622555,1754928653924,-151.0,0.00016712,2]
[378622556,1754928653934,-151.0,0.00016712,2]
[378622557,1754928653943,-1240.58,0.00016712,2]
[378622558,1754928653953,-726.02,0.00016712,2]
[378622559,1754928653963,-151.0,0.00016712,2]
[378622560,1754928653973,-2261.82,0.00016712,2]
[378622561,1754928653983,-400.0,0.00016712,2]
[378622562,1754928653992,-400.0,0.00016712,2]
[378622563,1754928654002,-662.32,0.00016712,2]
[378622564,1754928654011,-756.53,0.00016712,2]
[378622565,1754928654021,-151.0,0.00016712,2]
[378622566,1754928654030,-284.955476,0.00016712,2]
[378622567,1754928654039,-151.0,0.00016712,2]
[378622568,1754928654048,-1108.59,0.00016712,2]
[378622569,1754928654058,-151.0,0.00016712,2]
[378622570,1754928654067,-151.0,0.00016712,2]
[378622571,1754928654076,-151.0,0.00016712,2]
[378622572,1754928654089,-400.0,0.00016712,2]
[378622573,1754928654098,-208.038011,0.00016712,2]
[378622574,1754928654108,-400.0,0.00016712,2]
[378622575,1754928654118,-400.0,0.00016712,2]
[378622576,1754928654128,-400.0,0.00016712,2]
[378622577,1754928654137,-400.0,0.00016712,2]
[378622578,1754928654146,-486.82,0.00016712,2]
[378622579,1754928654158,-775.8,0.00016712,2]
[378622580,1754928654168,-742.65,0.00016712,2]
[378622581,1754928654178,-623.89,0.00016712,2]
[378622582,1754928654188,-400.0,0.00016712,2]
[378622583,1754928654197,-400.0,0.00016712,2]
[378622584,1754928654207,-692.61,0.00016712,2]
[378622585,1754928654216,-1202.88,0.00016712,2]
[378622586,1754928654226,-838.92,0.00016712,2]
[378622587,1754928654235,-400.0,0.00016712,2]
[378622588,1754928654246,-400.0,0.00016712,2]
[378622589,1754928654255,-400.0,0.00016712,2]
[378622590,1754928654264,-547.4,0.00016712,2]
[378622591,1754928654274,-151.0,0.00016712,2]
[378622592,1754928654284,-233.17993226,0.00016712,2]
[378622593,1754928654294,-151.0,0.00016712,2]
[378622594,1754928654303,-172.40595,0.00016712,2]
[378622595,1754928654314,-400.0,0.00016712,2]
[378622596,1754928654324,-512.62,0.00016712,2]
[378622597,1754928654334,-935.98,0.00016712,2]
[378622598,1754928654344,-1040.74,0.00016712,2]
[378622599,1754928654354,-400.0,0.00016712,2]
[378622600,1754928654364,-151.0,0.00016712,2]
[378622601,1754928654374,-726.82,0.00016712,2]
[378622602,1754928654385,-472.31,0.00016712,2]
[378622603,1754928654395,-151.0,0.00016712,2]
[378622604,1754928654405,-151.0,0.00016712,2]
[378622605,1754928654416,-274.6,0.00016712,2]
[378622606,1754928654427,-523.25,0.00016712,2]
[378622607,1754928654438,-400.0,0.00016712,2]
[378622608,1754928654449,-400.0,0.00016712,2]
[378622609,1754928654459,-786.14,0.00016712,2]
[378622610,1754928654469,-1447.59,0.00016712,2]
[378622611,1754928654480,-516.85,0.00016712,2]
[378622612,1754928654490,-400.0,0.00016712,2]
[378622613,1754928654500,-1333.25,0.00016712,2]
[378622614,1754928654510,-400.0,0.00016712,2]
[378622615,1754928654520,-1166.59,0.00016712,2]
[378622616,1754928654530,-400.0,0.00016712,2]
[378622617,1754928654539,-1280.91,0.00016712,2]
[378622618,1754928654549,-841.65,0.00016712,2]
[378622619,1754928654559,-1069.74,0.00016712,2]
[378622620,1754928654568,-407.56,0.00016712,2]
[378622621,1754928654579,-846.01,0.00016712,2]
[378622622,1754928654589,-400.0,0.00016712,2]
[378622623,1754928654599,-1990.03,0.00016712,2]
[378622624,1754928654609,-400.0,0.00016712,2]
[378622625,1754928654619,-400.0,0.00016712,2]
[378622626,1754928654629,-404.46300379,0.00016712,2]
[378622627,1754928654639,-464.55734638,0.00016712,2]
[378622628,1754928654649,-400.0,0.00016712,2]
[378622629,1754928654658,-151.0,0.00016712,2]
[378622630,1754928654668,-220.966866,0.00016712,2]
[378622631,1754928654681,-1058.34,0.00016712,2]
[378622632,1754928654691,-151.0,0.00016712,2]
[378622633,1754928654700,-347.867776,0.00016712,2]
[378622634,1754928654710,-347.867776,0.00016712,2]
[378622635,1754928654719,-400.0,0.00016712,2]
[378622636,1754928654729,-347.867776,0.00016712,2]
[378622637,1754928654738,-411.31,0.00016712,2]
[378622638,1754928654748,-762.8,0.00016712,2]
[378622639,1754928654757,-400.0,0.00016712,2]
[378622640,1754928654767,-870.76,0.00016712,2]
[378622641,1754928654776,-400.0,0.00016712,2]
[378622642,1754928654786,-798.23,0.00016712,2]
[378622643,1754928654796,-347.867776,0.00016712,2]
[378622644,1754928654805,-347.867776,0.00016712,2]
[378622645,1754928654815,-538.82,0.00016712,2]
[378622646,1754928654825,-347.867776,0.00016712,2]
[378622647,1754928654834,-1073.11,0.00016712,2]
[378622648,1754928654844,-151.0,0.00016712,2]
[378622649,1754928654854,-400.0,0.00016712,2]
[378622650,1754928654863,-3053.25,0.00016712,2]
[378622651,1754928654873,-400.0,0.00016712,2]
[378622652,1754928654883,-1937.53,0.00016712,2]
[378622653,1754928654893,-288.77427,0.00016712,2]
[378622654,1754928654902,-400.0,0.00016712,2]
[378622655,1754928654912,-531.31991135,0.00016712,2]
[378622656,1754928654923,-298.346945,0.00016712,2]
[378622657,1754928654933,-627.63,0.00016712,2]
[378622658,1754928654942,-400.0,0.00016712,2]
[378622659,1754928654951,-1645.07,0.00016712,2]
[378622660,1754928654961,-659.09,0.00016712,2]
[378622661,1754928654970,-436.81,0.00016712,2]
[378622662,1754928654980,-421.23,0.00016712,2]
[378622663,1754928654989,-1006.56,0.00016712,2]
[378622664,1754928654999,-5796.79,0.00016712,2]
[378622665,1754928655008,-400.0,0.00016712,2]
[378622666,1754928655018,-1055.53,0.00016712,2]
[378622667,1754928655027,-400.0,0.00016712,2]
[378622668,1754928655036,-400.0,0.00016712,2]
[378622669,1754928655046,-2550.81,0.00016712,2]
[378622670,1754928655056,-972.8,0.00016712,2]
[378622671,1754928655065,-400.0,0.00016712,2]
[378622672,1754928655074,-400.0,0.00016712,2]
[378622673,1754928655088,-400.0,0.00016712,2]
[378622674,1754928655097,-818.78,0.00016712,2]
[378622675,1754928655107,-814.81,0.00016712,2]
[378622676,1754928655116,-400.0,0.00016712,2]
[378622677,1754928655127,-400.0,0.00016712,2]
[378622678,1754928655137,-400.0,0.00016712,2]
[378622679,1754928655147,-400.0,0.00016712,2]
[378622680,1754928655158,-1000.0,0.00016712,2]
[378622681,1754928655169,-779.06,0.00016712,2]
[378622682,1754928655182,-400.0,0.00016712,2]
[378622683,1754928655192,-2099.59,0.00016712,2]
[378622684,1754928655202,-400.0,0.00016712,2]
[378622685,1754928655212,-780.82,0.00016712,2]
[378622686,1754928655221,-1434.75,0.00016712,2]
[378622687,1754928655231,-1229.84,0.00016712,2]
[378622688,1754928655240,-400.0,0.00016712,2]
[378622689,1754928655249,-1237.67,0.00016712,2]
[378622690,1754928655259,-673.58,0.00016712,2]
[378622691,1754928655268,-400.0,0.00016712,2]
[378622692,1754928655277,-1772.13,0.00016712,2]
[378622693,1754928655287,-732.93,0.00016712,2]
[378622694,1754928655296,-400.0,0.00016712,2]
[378622695,1754928655305,-593.32,0.00016712,2]
[378622696,1754928655314,-1483.07,0.00016712,2]
[378622697,1754928655323,-400.0,0.00016712,2]
[378622698,1754928655332,-905.74,0.00016712,2]
[378622699,1754928655341,-400.0,0.00016712,2]
[378622700,1754928655351,-400.0,0.00016712,2]
[378622701,1754928655360,-400.0,0.00016712,2]
[378622702,1754928655369,-1714.18,0.00016712,2]
[378622703,1754928655378,-1330.9,0.00016712,2]
[378622704,1754928655387,-400.0,0.00016712,2]
[378622705,1754928655396,-829.38,0.00016712,2]
[378622706,1754928655405,-1104.41,0.00016712,2]
[378622707,1754928655415,-400.0,0.00016712,2]
[378622708,1754928655425,-400.0,0.00016712,2]
[378622709,1754928655434,-485.38,0.00016712,2]
[378622710,1754928655444,-2451.81,0.00016712,2]
[378622711,1754928655453,-2900.78,0.00016712,2]
[378622712,1754928655462,-1374.07,0.00016712,2]
[378622713,1754928655472,-400.0,0.00016712,2]
[378622714,1754928655481,-864.72,0.00016712,2]
[378622715,1754928655492,-460.0,0.00016712,2]
[378622716,1754928655501,-400.0,0.00016712,2]
[378622717,1754928655511,-842.64,0.00016712,2]
[378622718,1754928655520,-400.0,0.00016712,2]
[378622719,1754928655529,-412.83,0.00016712,2]
[378622720,1754928655539,-400.0,0.00016712,2]
[378622721,1754928655549,-400.0,0.00016712,2]
[378622722,1754928655559,-1521.25,0.00016712,2]
[378622723,1754928655569,-883.84,0.00016712,2]
[378622724,1754928655578,-2260.71,0.00016712,2]
[378622725,1754928655588,-471.56726744,0.00016712,2]
[378622726,1754928655598,-997.4,0.00016712,2]
[378622727,1754928655608,-157.15,0.00016712,2]
[378622728,1754928655619,-3547.96,0.00016712,2]
[378622729,1754928655629,-455.54,0.00016712,2]
[378622730,1754928655639,-1734.13,0.00016712,2]
[378622731,1754928655650,-800.59,0.00016712,2]
[378622732,1754928655660,-438.21,0.00016712,2]
[378622733,1754928655676,-400.0,0.00016712,2]
[378622734,1754928655689,-1238.72,0.00016712,2]
[378622735,1754928655700,-559.91,0.00016712,2]
[378622736,1754928655711,-400.0,0.00016712,2]
[378622737,1754928655720,-1607.28,0.00016712,2]
[378622738,1754928655730,-777.686251,0.00016712,2]
[378622739,1754928655740,-1480.34,0.00016712,2]
[378622740,1754928655750,-777.686251,0.00016712,2]
[378622741,1754928655759,-577.11,0.00016712,2]
[378622742,1754928655769,-400.0,0.00016712,2]
[378622743,1754928655779,-400.0,0.00016712,2]
[378622744,1754928655789,-512.88,0.00016712,2]
[378622745,1754928655799,-777.686251,0.00016712,2]
[378622746,1754928655809,-494.14,0.00016712,2]
[378622747,1754928655818,-777.686251,0.00016712,2]
[378622748,1754928655828,-777.686251,0.00016712,2]
[378622749,1754928655838,-777.686251,0.00016712,2]
[378622750,1754928655848,-633.02,0.00016712,2]
[378622751,1754928655857,-498.63,0.00016712,2]
[378622752,1754928655867,-400.0,0.00016712,2]
[378622753,1754928655876,-1122.55,0.00016712,2]
[378622754,1754928656196,-2137.0,0.00016712,2]
[378622755,1754928656212,-400.0,0.00016712,2]
[378622756,1754928656221,-400.0,0.00016712,2]
[378622757,1754928656231,-771.02,0.00016712,2]
[378622758,1754928656240,-537.96,0.00016712,2]
[378622759,1754928656250,-2592.83,0.00016712,2]
[378622760,1754928656260,-686.78,0.00016712,2]
[378622761,1754928656269,-2839.43,0.00016712,2]
[378622762,1754928656278,-400.0,0.00016712,2]
[378622763,1754928656288,-1205.4,0.00016712,2]
[378622764,1754928656297,-2547.31,0.00016712,2]
[378622765,1754928656307,-400.0,0.00016712,2]
[378622766,1754928656316,-2438.97,0.00016712,2]
[378622767,1754928656325,-539.32,0.00016712,2]
[378622768,1754928656335,-921.45,0.00016712,2]
[378622769,1754928656344,-460.0,0.00016712,2]
[378622770,1754928656353,-1886.81,0.00016712,2]
[378622771,1754928656363,-775.12,0.00016712,2]
[378622772,1754928656372,-1125.69,0.00016712,2]
[378622773,1754928656381,-400.0,0.00016712,2]
[378622774,1754928656390,-400.0,0.00016712,2]
[378622775,1754928656398,-1782.05,0.00016712,2]
[378622776,1754928656407,-712.41,0.00016712,2]
[378622777,1754928656415,-403.32212707,0.00016712,2]
[378622778,1754928656426,-2688.74,0.00016712,2]
[378622779,1754928656436,-507.13,0.00016712,2]
[378622780,1754928656445,-781.84,0.00016712,2]
[378622781,1754928656454,-584.88,0.00016712,2]
[378622782,1754928656463,-151.0,0.00016712,2]
[378622783,1754928656472,-151.0,0.00016712,2]
[378622784,1754928656481,-151.0,0.00016712,2]
[378622785,1754928656491,-400.0,0.00016712,2]
[378622786,1754928656500,-433.47919251,0.00016712,2]
[378622787,1754928656508,-400.0,0.00016712,2]
[378622788,1754928656518,-2651.97,0.00016712,2]
[378622789,1754928656527,-3946.43,0.00016712,2]
[378622790,1754928656537,-2001.79,0.00016712,2]
[378622791,1754928656546,-776.33,0.00016712,2]
[378622792,1754928656555,-1028.56,0.00016712,2]
[378622793,1754928656565,-3380.71,0.00016712,2]
[378622794,1754928656574,-467.61,0.00016712,2]
[378622795,1754928656584,-1627.2,0.00016712,2]
[378622796,1754928656593,-400.0,0.00016712,2]
[378622797,1754928656603,-1339.26,0.00016712,2]
[378622798,1754928656613,-400.0,0.00016712,2]
[378622799,1754928656623,-3448.93,0.00016712,2]
[378622800,1754928656633,-400.0,0.00016712,2]
[378622801,1754928656642,-898.18,0.00016712,2]
[378622802,1754928656651,-2370.36,0.00016712,2]
[378622803,1754928656660,-400.0,0.00016712,2]
[378622804,1754928656669,-1088.68,0.00016712,2]
[378622805,1754928656681,-1229.86,0.00016712,2]
[378622806,1754928656691,-423.34368527,0.00016712,2]
[378622807,1754928656700,-400.0,0.00016712,2]
[378622808,1754928656709,-761.54,0.00016712,2]
[378622809,1754928656718,-1045.14,0.00016712,2]
[378622810,1754928656728,-400.0,0.00016712,2]
[378622811,1754928656737,-435.73,0.00016712,2]
[378622812,1754928656747,-1305.13,0.00016712,2]
[378622813,1754928656756,-403.16345443,0.00016712,2]
[378622814,1754928656766,-1228.5,0.00016712,2]
[378622815,1754928656775,-1728.74,0.00016712,2]
[378622816,1754928656785,-953.83,0.00016712,2]
[378622817,1754928656794,-400.0,0.00016712,2]
[378622818,1754928656804,-1799.01,0.00016712,2]
[378622819,1754928656814,-957.23,0.00016712,2]
[378622820,1754928656823,-400.0,0.00016712,2]
[378622821,1754928656833,-665.63,0.00016712,2]
[378622822,1754928656843,-491.88,0.00016712,2]
[378622823,1754928656853,-1240.64,0.00016712,2]
[378622824,1754928656866,-468.61,0.00016712,2]
[378622825,1754928656876,-486.361766,0.00016712,2]
[378622826,1754928656885,-486.361766,0.00016712,2]
[378622827,1754928656895,-486.361766,0.00016712,2]
[378622828,1754928656904,-400.0,0.00016712,2]
[378622829,1754928656914,-515.21,0.00016712,2]
[378622830,1754928656923,-486.361766,0.00016712,2]
[378622831,1754928656933,-951.94,0.00016712,2]
[378622832,1754928656943,-400.0,0.00016712,2]
[378622833,1754928656953,-486.361766,0.00016712,2]
[378622834,1754928656963,-688.18,0.00016712,2]
[378622835,1754928656973,-486.361766,0.00016712,2]
[378622836,1754928656982,-4574.56,0.00016712,2]
[378622837,1754928656992,-1127.37,0.00016712,2]
[378622838,1754928657002,-1152.05,0.00016712,2]
[378622839,1754928657011,-453.23690081,0.00016712,2]
[378622840,1754928657021,-747.98,0.00016712,2]
[378622841,1754928657030,-1325.18,0.00016712,2]
[378622842,1754928657039,-400.0,0.00016712,2]
[378622843,1754928657049,-668.38,0.00016712,2]
[378622844,1754928657058,-400.0,0.00016712,2]
[378622845,1754928657067,-1351.74,0.00016712,2]
[378622846,1754928657077,-1042.73,0.00016712,2]
[378622847,1754928657091,-528.3,0.00016712,2]
[378622848,1754928657101,-1215.24,0.00016712,2]
[378622849,1754928657110,-1434.74,0.00016712,2]
[378622850,1754928657119,-1634.63,0.00016712,2]
[378622851,1754928657130,-3826.81,0.00016712,2]
[378622852,1754928657140,-1476.2,0.00016712,2]
[378622853,1754928657150,-429.4,0.00016712,2]
[378622854,1754928657159,-400.0,0.00016712,2]
[378622855,1754928657169,-493.27,0.00016712,2]
[378622856,1754928657180,-400.0,0.00016712,2]
[378622857,1754928657190,-873.66,0.00016712,2]
[378622858,1754928657199,-1248.12,0.00016712,2]
[378622859,1754928657208,-1274.76,0.00016712,2]
[378622860,1754928657218,-1396.83,0.00016712,2]
[378622861,1754928657227,-5784.88,0.00016712,2]
[378622862,1754928657236,-1739.6,0.00016712,2]
[378622863,1754928657245,-400.0,0.00016712,2]
[378622864,1754928657255,-495.92,0.00016712,2]
[378622865,1754928657264,-675.46,0.00016712,2]
[378622866,1754928657274,-400.0,0.00016712,2]
[378622867,1754928657283,-400.0,0.00016712,2]
[378622868,1754928657293,-3301.77,0.00016712,2]
[378622869,1754928657302,-3862.0177584,0.00016712,2]
[378622870,1754928657853,-4102.0922416,0.00016712,2]
[378622871,1754928657863,-1585.22610102,0.00016712,2]
[378622872,1754928657874,-706.99389898,0.00016712,2]
[378622873,1754928657884,-151.0,0.00016712,2]
[378622874,1754928657894,-400.0,0.00016712,2]
[378622875,1754928657904,-269.174669,0.00016712,2]
[378622876,1754928657914,-283.88143202,0.00016712,2]
[378622877,1754928657930,-33.4869717,0.00016712,2]
[378622878,1754928657940,-400.0,0.00016712,2]
[378622879,1754928657949,-621.44,0.00016712,2]
[378622880,1754928657958,-609.0222488,0.00016712,2]
[378622881,1754928658017,-1051.4077512,0.00016712,2]
[378622882,1754928658027,-570.3,0.00016712,2]
[378622883,1754928658036,-529.65,0.00016712,2]
[378622884,1754928658045,-1419.67,0.00016712,2]
[378622885,1754928658055,-1418.28,0.00016712,2]
[378622886,1754928658064,-401.96,0.00016712,2]
[378622887,1754928658074,-861.98093387,0.00016712,2]
[378622888,1754928658089,-580.36906613,0.00016712,2]
[378622889,1754928658098,-150.92,0.00016712,2]
[378622890,1754928658108,-400.0,0.00016712,2]
[378622891,1754928658118,-93.71093387,0.00016712,2]
[378622892,1754928658130,-293.93629405,0.00016712,2]
[378622893,1754928659060,-400.0,0.00016438,2]
[378622894,1754928659069,-106.53277208,0.00016712,2]
[378622895,1754928659080,-400.0,0.00016712,2]
[378622896,1754928659093,-187.93334835,0.00016712,2]
[378622897,1754928659104,-478.98665165,0.00016712,2]
[378622898,1754928659114,-400.0,0.00016712,2]
[378622899,1754928659123,-1931.1,0.00016712,2]
[378622900,1754928659132,-1388.55,0.00016712,2]
[378622901,1754928659141,-1906.86334835,0.00016712,2]
[378622902,1754928659153,-1383.68665165,0.00016712,2]
[378622903,1754928659165,-400.0,0.00016712,2]
[378622904,1754928659174,-1152.84,0.00016712,2]
[378622905,1754928659185,-153.24935435,0.00016712,2]